bitfinex-derivatives/quotes_BTCF0:USTF0_20241104
["timestamp","ask_amount","ask_price","bid_price","bid_amount"]
[1730747925648,0.073589,67982.0,67977.0,0.073594]
[1730747925849,0.02843486,67981.0,67980.0,0.073591]
[1730747926550,0.0008,67983.0,67982.0,0.073589]
[1730747926851,0.01828911,67986.0,67984.0,0.073586]
[1730747927047,0.2251895,67993.0,67979.0,0.3608]
[1730747927246,0.073582,67989.0,67988.0,0.073582]
[1730747927452,0.10201289,67989.0,67988.0,0.073582]
[1730747927846,0.073582,67989.0,67988.0,0.073582]
[1730747928445,0.39513055,67991.0,67988.0,0.073582]
[1730747928645,0.014,67989.0,67988.0,0.073582]
[1730747930050,0.028,67989.0,67988.0,0.073582]
[1730747932161,0.101581,67989.0,67986.0,0.49293316]
[1730747932356,0.028,67989.0,67988.0,0.073582]
[1730747933151,0.014,67989.0,67988.0,0.073582]
[1730747933351,0.028,67989.0,67988.0,0.073582]
[1730747934457,0.014,67989.0,67988.0,0.11736538]
[1730747934649,0.028,67989.0,67988.0,0.11736538]
[1730747934853,0.028,67989.0,67988.0,0.073582]
[1730747940257,0.073583,67987.0,67984.0,0.05854916]
[1730747940461,0.073585,67986.0,67983.0,0.073587]
[1730747941360,0.073585,67986.0,67977.0,1.501]
[1730747941361,0.073585,67986.0,67985.0,0.04375394]
[1730747941557,0.073585,67986.0,67982.0,0.073589]
[1730747941762,0.028,67989.0,67982.0,0.05854916]
[1730747941967,0.028,67989.0,67979.0,0.3608]
[1730747941968,0.028,67989.0,67988.0,0.073582]
[1730747942363,0.014,67989.0,67988.0,0.11733474]
[1730747942564,0.3608,67990.0,67988.0,0.04375274]
[1730747942774,0.3608,67990.0,67989.0,0.073581]
[1730747943871,0.3888,67990.0,67989.0,0.073581]
[1730747944163,0.3888,67990.0,67989.0,0.11733374]
[1730747945162,0.3888,67990.0,67989.0,0.073581]
[1730747945163,0.41722923,67990.0,67989.0,0.073581]
[1730747945954,0.05642923,67990.0,67989.0,0.073581]
[1730747948762,0.06403796,67990.0,67989.0,0.073581]
[1730747948970,0.09246719,67990.0,67989.0,0.073581]
[1730747949566,0.05642923,67990.0,67989.0,0.073581]
[1730747951966,0.028,67990.0,67989.0,0.073581]
[1730747953570,0.028,67990.0,67989.0,0.13213016]
[1730747953766,0.028,67990.0,67989.0,0.073581]
[1730747954561,0.028,67990.0,67989.0,0.13213016]
[1730747954767,0.028,67990.0,67989.0,0.073581]
[1730747956374,0.028,67990.0,67986.0,0.073584]
[1730747956577,0.028,67990.0,67987.0,0.073583]
[1730747956763,0.028,67990.0,67987.0,0.14676945]
[1730747957071,0.073585,67986.0,67985.0,0.07318645]
[1730747957272,0.132,67989.0,67982.0,0.07318645]
[1730747957481,0.073582,67988.0,67987.0,0.05856488]
[1730747957680,0.140082,67988.0,67987.0,0.05856488]
[1730747958268,0.140082,67988.0,67983.0,0.073587]
[1730747958670,0.0665,67988.0,67983.0,0.073587]
[1730747958973,0.073584,67987.0,67983.0,0.073587]
[1730747959484,0.073585,67986.0,67983.0,0.073587]
[1730747959676,0.0945,67988.0,67982.0,0.07318645]
[1730747959877,0.073587,67984.0,67981.0,0.07318645]
[1730747960182,0.06447489,67983.0,67980.0,0.073591]
[1730747960380,0.06447489,67982.0,67980.0,0.073591]
[1730747960578,0.02843137,67981.0,67980.0,0.073591]
[1730747960875,0.073593,67978.0,67977.0,0.36176]
[1730747961180,0.13806784,67978.0,67977.0,0.3608]
[1730747961680,0.10202437,67978.0,67977.0,0.3608]
[1730747962581,0.11002437,67978.0,67977.0,0.3608]
[1730747963067,0.11902437,67978.0,67977.0,0.3608]
[1730747965475,0.11902652,67978.0,67977.0,0.3608]
[1730747965680,0.11902652,67978.0,67974.0,0.07580344]
[1730747965875,0.11902652,67978.0,67963.0,0.073609]
[1730747965876,0.073602,67970.0,67953.0,0.01590731]
[1730747966089,0.18472313,67977.0,67953.0,0.01590731]
[1730747966090,0.12724575,67966.0,67954.0,0.4262]
[1730747966277,0.073609,67964.0,67960.0,0.3608]
[1730747966480,0.02843352,67963.0,67960.0,0.3608]
[1730747967177,0.0367757,67964.0,67961.0,0.10602417]
[1730747967382,0.0367757,67964.0,67962.0,0.07314364]
[1730747967971,0.073609,67963.0,67962.0,0.07314364]
[1730747968374,0.073612,67961.0,67960.0,0.07314364]
[1730747968570,0.073615,67958.0,67957.0,0.07314364]
[1730747968776,0.073618,67955.0,67954.0,0.4262]
[1730747968982,0.073618,67955.0,67954.0,0.3608]
[1730747969491,0.12724575,67962.0,67954.0,0.3608]
[1730747969674,0.073614,67959.0,67958.0,0.0584371]
[1730747970486,0.073615,67958.0,67957.0,0.0584371]
[1730747971278,0.073615,67958.0,67954.0,0.3608]
[1730747971279,0.12724575,67962.0,67956.0,0.0584371]
[1730747971585,0.073616,67957.0,67956.0,0.0584371]
[1730747972370,0.073616,67957.0,67955.0,0.1320551]
[1730747972571,0.073617,67957.0,67955.0,0.1320551]
[1730747972772,0.3608,67963.0,67959.0,0.073614]
[1730747973076,0.434409,67963.0,67962.0,0.04380029]
[1730747973272,0.434409,67963.0,67962.0,0.04380034]
[1730747974081,0.435409,67963.0,67962.0,0.04380034]
[1730747974882,0.07361,67962.0,67961.0,0.04380034]
[1730747975189,0.3618,67963.0,67957.0,1.50104]
[1730747975385,0.073614,67959.0,67957.0,1.5]
[1730747975685,0.073615,67958.0,67957.0,1.5]
[1730747976981,0.073615,67958.0,67954.0,0.434419]
[1730747977185,0.073615,67958.0,67954.0,0.073619]
[1730747977590,0.073615,67958.0,67955.0,1.573618]
[1730747978381,0.073612,67961.0,67955.0,1.5]
[1730747978581,0.12924575,67958.0,67953.0,0.00220731]
[1730747978882,0.073619,67954.0,67953.0,0.00220731]
[1730747979180,0.073619,67954.0,67953.0,1.50220731]
[1730747979382,0.073619,67954.0,67953.0,0.00220731]
[1730747979979,0.073619,67954.0,67948.0,1.5]
[1730747979980,0.073618,67955.0,67948.0,1.50104]
[1730747980185,0.073624,67950.0,67948.0,1.5]
[1730747981684,0.073627,67947.0,67946.0,0.062]
[1730747981885,0.001,67950.0,67944.0,0.3608]
[1730747982087,0.07193843,67948.0,67945.0,0.10610823]
[1730747982284,0.001,67950.0,67948.0,0.073625]
[1730747982484,0.001,67950.0,67949.0,0.17971506]
[1730747982886,0.001,67950.0,67949.0,0.10609006]
[1730747983186,0.002,67950.0,67949.0,0.07298194]
[1730747983385,0.09147207,67951.0,67949.0,0.07298194]
[1730747983386,0.09147207,67951.0,67949.0,0.10612051]
[1730747983584,0.09147207,67951.0,67950.0,0.10612051]
[1730747983785,0.09147207,67951.0,67950.0,0.46692051]
[1730747984380,0.09147207,67951.0,67950.0,0.43380487]
[1730747984587,0.09247207,67951.0,67950.0,0.43380487]
[1730747985286,0.01885007,67951.0,67950.0,0.53987098]
[1730747985493,0.01985007,67951.0,67950.0,0.61349398]
[1730747985692,0.002,67951.0,67950.0,0.61350646]
[1730747986198,0.075622,67951.0,67950.0,0.53988346]
[1730747986383,0.075622,67951.0,67950.0,0.46686611]
[1730747986696,0.002,67951.0,67950.0,0.54048911]
[1730747987006,0.002,67951.0,67950.0,0.62831285]
[1730747987184,0.002,67951.0,67950.0,0.54048911]
[1730747988299,0.002,67951.0,67950.0,0.55815908]
[1730747988494,0.24756575,67962.0,67950.0,0.68431743]
[1730747988801,0.073612,67961.0,67960.0,0.0730596]
[1730747988999,0.073612,67961.0,67960.0,0.17912571]
[1730747989396,0.073612,67961.0,67960.0,0.10606611]
[1730747990094,0.073614,67959.0,67958.0,0.073615]
[1730747990303,0.073614,67959.0,67958.0,0.14670265]
[1730747991093,0.073614,67959.0,67958.0,0.25268267]
[1730747991301,0.073614,67959.0,67958.0,0.18059502]
[1730747991504,0.26532381,67962.0,67959.0,0.073613]
[1730747991505,0.33893481,67962.0,67959.0,0.073613]
[1730747991804,0.33893481,67962.0,67959.0,0.14674992]
[1730747992206,0.26532381,67962.0,67961.0,0.073612]
[1730747992402,0.01775806,67962.0,67961.0,0.17958257]
[1730747992607,0.073599,67973.0,67967.0,0.073605]
[1730747992791,0.54894,67977.0,67967.0,0.5398647]
[1730747993195,0.073599,67973.0,67967.0,0.5398647]
[1730747993502,0.08353324,67971.0,67967.0,0.5398647]
[1730747994700,0.15713424,67971.0,67967.0,0.5398647]
[1730747994902,0.01822348,67969.0,67967.0,0.5418647]
[1730747995504,0.01822348,67969.0,67967.0,0.62960076]
[1730747995903,0.01822348,67969.0,67967.0,0.5418647]
[1730747996709,0.073601,67971.0,67967.0,0.5418647]
[1730747996907,0.07581156,67968.0,67967.0,0.1074597]
[1730747997311,0.14030394,67968.0,67967.0,0.002]
[1730747997618,0.15819844,67968.0,67967.0,0.002]
[1730747998600,0.12214514,67968.0,67967.0,0.002]
[1730748000911,0.12214545,67968.0,67967.0,0.002]
[1730748002604,0.04854145,67968.0,67967.0,0.075605]
[1730748002806,0.08459512,67968.0,67967.0,0.002]
[1730748003113,0.15819912,67968.0,67967.0,0.002]
[1730748003307,0.56354545,67968.0,67967.0,0.002]
[1730748003508,0.56354545,67968.0,67951.0,0.3608]
[1730748003509,0.59959934,67968.0,67951.0,0.3608]
[1730748003805,0.073617,67956.0,67953.0,0.07362]
[1730748004009,0.1557285,67955.0,67953.0,0.07362]
[1730748004323,0.02843939,67954.0,67953.0,0.07362]
[1730748005117,0.001,67956.0,67954.0,0.073619]
[1730748005415,0.001,67956.0,67955.0,0.10593353]
[1730748006809,0.01797951,67959.0,67955.0,0.10593353]
[1730748007028,0.00076,67961.0,67957.0,0.3608]
[1730748007210,0.073605,67967.0,67962.0,0.07361]
[1730748007418,0.00220756,67968.0,67966.0,0.073605]
[1730748008209,0.00220756,67968.0,67966.0,0.14673067]
[1730748008408,0.0202392,67968.0,67966.0,0.073605]
[1730748008718,0.00220756,67968.0,67966.0,0.073605]
[1730748009018,0.073606,67966.0,67965.0,0.07312567]
[1730748009213,0.073608,67964.0,67963.0,0.07312567]
[1730748009818,0.073608,67964.0,67963.0,0.17869942]
[1730748010510,0.073608,67964.0,67962.0,0.07312567]
[1730748010705,0.09383162,67968.0,67962.0,0.14673567]
[1730748010907,0.001,67964.0,67963.0,0.07312567]
[1730748011108,0.002,67964.0,67963.0,0.1791135]
[1730748011317,0.002,67964.0,67963.0,0.5399135]
[1730748012115,0.05699881,67968.0,67963.0,0.5399135]
[1730748012423,0.02843863,67967.0,67966.0,0.073606]
[1730748013014,0.003,67968.0,67966.0,0.073606]
[1730748013322,0.02843851,67967.0,67964.0,0.073608]
[1730748013527,0.02843851,67967.0,67963.0,0.3608]
[1730748013528,0.073603,67969.0,67966.0,0.073605]
[1730748013820,0.10204327,67968.0,67964.0,0.073608]
[1730748014123,0.02843827,67967.0,67965.0,0.073607]
[1730748014426,0.02843871,67966.0,67965.0,0.073607]
[1730748016222,0.02843871,67966.0,67965.0,0.074607]
[1730748016722,0.02843871,67966.0,67965.0,0.075607]
[1730748016914,0.02843871,67966.0,67965.0,0.076607]
[1730748019323,0.073605,67968.0,67965.0,0.076607]
[1730748019529,0.0284387,67967.0,67965.0,0.076607]
[1730748019721,0.0284387,67966.0,67965.0,0.076607]
[1730748020523,0.073605,67968.0,67965.0,0.074607]
[1730748020725,0.073605,67968.0,67966.0,0.05859686]
[1730748021024,0.14539265,67971.0,67966.0,0.05859686]
[1730748021325,0.073602,67970.0,67969.0,0.04394786]
[1730748021627,0.073603,67969.0,67966.0,0.05859686]
[1730748021930,0.073603,67969.0,67967.0,0.05859686]
[1730748022123,0.073603,67969.0,67966.0,0.05959686]
[1730748022332,0.073604,67968.0,67966.0,0.05959686]
[1730748022833,0.073602,67970.0,67967.0,0.05859686]
[1730748023025,0.073602,67970.0,67968.0,0.05859686]
[1730748023228,0.14539265,67971.0,67969.0,0.3608]
[1730748023434,0.073591,67981.0,67970.0,0.30500972]
[1730748023631,0.073591,67981.0,67978.0,0.05857905]
[1730748023830,0.073591,67981.0,67979.0,0.13217005]
[1730748024030,0.073591,67981.0,67980.0,0.05857905]
[1730748024427,0.073591,67980.0,67979.0,0.05857905]
[1730748024636,0.073591,67980.0,67979.0,0.13217105]
[1730748024935,0.09364179,67982.0,67980.0,0.07359]
[1730748025125,0.012,67981.0,67980.0,0.07359]
[1730748025628,0.012,67981.0,67980.0,0.13216905]
[1730748025830,0.012,67981.0,67980.0,0.07359]
[1730748026227,0.022,67981.0,67980.0,0.07359]
[1730748026729,0.01,67981.0,67980.0,0.07359]
[1730748026925,0.08359,67981.0,67980.0,0.07359]
[1730748027325,0.11202095,67981.0,67980.0,0.07359]
[1730748027529,0.12402095,67981.0,67980.0,0.07359]
[1730748027733,0.20524135,67981.0,67980.0,0.07359]
[1730748028134,0.20524207,67981.0,67980.0,0.07359]
[1730748028433,0.13165207,67981.0,67980.0,0.07359]
[1730748028625,0.13165135,67981.0,67980.0,0.07359]
[1730748030037,0.20524135,67981.0,67980.0,0.07359]
[1730748031231,0.13165135,67981.0,67980.0,0.07359]
[1730748032228,0.20524135,67981.0,67980.0,0.07359]
[1730748032440,0.073593,67978.0,67977.0,0.434394]
[1730748032637,0.13806692,67978.0,67977.0,0.434394]
[1730748033434,0.06447392,67978.0,67977.0,0.434394]
[1730748033734,0.07247392,67978.0,67977.0,0.434394]
[1730748033935,0.08147392,67978.0,67977.0,0.434394]
[1730748035434,0.017,67978.0,67977.0,0.434394]
[1730748036637,0.090593,67978.0,67977.0,0.434394]
[1730748037537,0.017,67978.0,67977.0,0.434394]
[1730748037953,0.090593,67978.0,67977.0,0.434394]
[1730748039139,0.017,67978.0,67977.0,0.434394]
[1730748040349,0.017,67978.0,67977.0,0.49288264]
[1730748040534,0.017,67978.0,67977.0,0.434394]
[1730748041649,0.017,67978.0,67977.0,0.49288264]
[1730748042444,0.074339,67991.0,67981.0,0.07359]
[1730748042646,0.073579,67992.0,67988.0,0.04378419]
[1730748042850,0.073579,67992.0,67991.0,0.073579]
[1730748043950,0.087579,67992.0,67991.0,0.073579]
[1730748044553,0.11000279,67992.0,67991.0,0.073579]
[1730748045143,0.014,67992.0,67991.0,0.073579]
[1730748045755,0.028,67992.0,67991.0,0.074579]
[1730748046455,0.014,67992.0,67991.0,0.073579]
[1730748046645,0.0687,68008.0,67991.0,0.634499]
[1730748046848,0.073564,68006.0,68005.0,0.3608]
[1730748047055,0.073555,68014.0,68005.0,0.3608]
[1730748047056,0.1281,68015.0,68005.0,0.3608]
[1730748047346,0.3608,68030.0,68008.0,0.20085011]
[1730748047347,0.073551,68018.0,68008.0,0.20085011]
[1730748047548,0.073551,68018.0,68008.0,1.70085011]
[1730748048552,0.073551,68017.0,68008.0,1.70085011]
[1730748049364,0.00820654,68009.0,68008.0,1.82153011]
[1730748049652,0.01220654,68009.0,68008.0,1.82253011]
[1730748050157,0.00820654,68009.0,68008.0,1.82153011]
[1730748050360,0.01120654,68009.0,68008.0,1.82153011]
[1730748050664,0.03662389,68009.0,68008.0,1.70275227]
[1730748050951,0.11780548,68009.0,68008.0,1.77631327]
[1730748051851,0.11780548,68009.0,68008.0,0.27631327]
[1730748052250,0.00820654,68009.0,68008.0,0.27631327]
[1730748052454,0.00820654,68009.0,68008.0,1.77631327]
[1730748052650,0.00820654,68009.0,68008.0,0.27631327]
[1730748053253,0.0533623,68009.0,68008.0,0.27631327]
[1730748053559,0.07264953,68009.0,68008.0,0.27631327]
[1730748054759,0.03662384,68009.0,68008.0,0.193241]
[1730748056060,0.00820654,68009.0,68008.0,0.193241]
[1730748056355,0.07956,68009.0,68008.0,0.073561]
[1730748056563,0.006,68009.0,68008.0,0.073561]
[1730748059859,0.006,68009.0,68005.0,0.434363]
[1730748060161,0.006,68009.0,68002.0,0.073567]
[1730748060162,0.073564,68006.0,68002.0,0.073567]
[1730748061356,0.12728911,68007.0,68000.0,0.3608]
[1730748061557,0.12728911,68001.0,68000.0,0.3608]
[1730748061765,0.12728911,68001.0,68000.0,0.434369]
[1730748062869,0.073573,67997.0,67991.0,0.11719071]
[1730748063159,0.12728911,67993.0,67991.0,0.11719071]
[1730748064367,0.12728911,67993.0,67991.0,0.04361171]
[1730748065259,0.12728911,67993.0,67990.0,0.07358]
[1730748065459,0.02842769,67992.0,67991.0,0.006]
[1730748066154,0.54324569,67992.0,67991.0,0.003]
[1730748066360,0.54324569,67992.0,67991.0,0.006]
[1730748066560,0.54324569,67992.0,67991.0,0.003]
[1730748066763,0.54324569,67992.0,67991.0,0.007]
[1730748066963,0.56580816,67992.0,67991.0,0.007]
[1730748067965,0.53738047,67992.0,67991.0,0.007]
[1730748068161,0.60185246,67992.0,67991.0,0.006]
[1730748068757,0.52827446,67992.0,67984.0,0.3608]
[1730748068959,0.20087111,67989.0,67984.0,0.3608]
[1730748069162,0.02843009,67988.0,67984.0,0.3608]
[1730748070165,0.02843009,67988.0,67983.0,0.3608]
[1730748071260,0.10201309,67988.0,67983.0,0.3608]
[1730748071473,0.02843009,67987.0,67983.0,0.3608]
[1730748071769,0.02843009,67987.0,67984.0,0.073587]
[1730748071977,0.02843009,67987.0,67983.0,0.3608]
[1730748072154,0.02843009,67987.0,67986.0,0.073585]
[1730748072556,0.0284298,67987.0,67983.0,0.3608]
[1730748072858,0.12728911,67989.0,67983.0,0.3628]
[1730748072859,0.073583,67988.0,67983.0,0.3628]
[1730748073260,0.073583,67988.0,67984.0,0.073586]
[1730748073666,0.073583,67988.0,67986.0,0.001]
[1730748074267,0.073583,67988.0,67986.0,0.002]
[1730748074972,0.073583,67988.0,67986.0,0.001]
[1730748075268,0.073583,67988.0,67984.0,0.073586]
[1730748075666,0.073583,67988.0,67985.0,0.073585]
[1730748078269,0.02256247,67992.0,67983.0,0.3608]
[1730748078461,0.073577,67993.0,67989.0,0.073581]
[1730748078870,0.07358,67991.0,67984.0,0.063]
[1730748079063,0.07358,67990.0,67986.0,0.073584]
[1730748079378,0.21494014,67994.0,67981.0,0.04361171]
[1730748079379,0.48808911,67987.0,67981.0,0.04361171]
[1730748079568,0.073586,67985.0,67981.0,0.073589]
[1730748079768,0.12728911,67987.0,67983.0,0.073587]
[1730748080066,0.004,67992.0,67977.0,0.00220627]
[1730748080067,0.004,67992.0,67982.0,0.53170082]
[1730748080369,0.004,67992.0,67987.0,0.073583]
[1730748080370,0.07358,67990.0,67987.0,0.073583]
[1730748080571,0.07358,67990.0,67986.0,0.073584]
[1730748081768,0.07558,67990.0,67986.0,0.073584]
[1730748082172,0.07758,67990.0,67986.0,0.073584]
[1730748082570,0.07758,67990.0,67987.0,0.073583]
[1730748085281,0.004,67990.0,67988.0,0.073582]
[1730748086377,0.002,67990.0,67988.0,0.073582]
[1730748086578,0.07758,67990.0,67988.0,0.073582]
[1730748087475,0.07758,67990.0,67989.0,0.04361171]
[1730748087783,0.03242867,67990.0,67989.0,0.073581]
[1730748088477,0.06446876,67990.0,67989.0,0.073581]
[1730748088680,0.06846876,67990.0,67989.0,0.073581]
[1730748089076,0.03242867,67990.0,67989.0,0.434381]
[1730748090674,0.004,67990.0,67989.0,0.434381]
[1730748090874,0.03242591,67990.0,67989.0,0.434381]
[1730748091576,0.02183888,68003.0,67989.0,0.875621]
[1730748091879,0.0284251,68002.0,68001.0,0.073567]
[1730748092577,0.0284251,68002.0,68001.0,0.514727]
[1730748093889,0.0304251,68002.0,68001.0,0.514727]
[1730748094184,0.002,68002.0,68001.0,0.514727]
[1730748094578,0.006,68002.0,68001.0,0.514727]
[1730748094776,0.00220609,68016.0,68013.0,0.073553]
[1730748095104,0.073555,68014.0,68013.0,0.073553]
[1730748095290,0.073555,68014.0,68010.0,0.11727445]
[1730748095484,0.073557,68011.0,68010.0,0.11727445]
[1730748095682,0.00220609,68016.0,68010.0,0.04371645]
[1730748095985,0.00220609,68016.0,68015.0,0.073553]
[1730748097384,0.00220609,68016.0,68015.0,0.074553]
[1730748098379,0.00820609,68016.0,68015.0,0.075553]
[1730748103182,0.03662285,68016.0,68015.0,0.29156047]
[1730748103485,0.03662285,68016.0,68015.0,0.36511347]
[1730748103486,0.04423109,68016.0,68015.0,0.36511347]
[1730748103687,0.04423109,68016.0,68015.0,0.80619347]
[1730748103985,0.14636942,68026.0,68025.0,0.073542]
[1730748104189,0.06696908,68026.0,68025.0,0.434342]
[1730748104688,0.04514634,68026.0,68025.0,0.434342]
[1730748105093,0.05514634,68026.0,68025.0,0.435342]
[1730748105886,0.04514634,68026.0,68025.0,0.074542]
[1730748106282,0.073533,68034.0,68029.0,0.073538]
[1730748106481,0.073534,68033.0,68032.0,0.434335]
[1730748107692,0.075534,68033.0,68032.0,0.434335]
[1730748108001,0.12067847,68033.0,68032.0,0.3608]
[1730748108291,0.66286342,68033.0,68024.0,0.3608]
[1730748108591,0.20071481,68025.0,68024.0,0.3608]
[1730748109187,0.20071481,68025.0,68019.0,0.073548]
[1730748109188,0.073543,68024.0,68019.0,0.073548]
[1730748109390,0.04515272,68023.0,68019.0,0.073548]
[1730748109583,0.04515272,68023.0,68013.0,0.4304]
[1730748109584,0.04515231,68022.0,68013.0,0.4304]
[1730748109789,0.073537,68030.0,68026.0,0.07354]
[1730748110390,0.07354,68028.0,68019.0,0.073548]
[1730748110586,0.07354,68028.0,68015.0,0.073553]
[1730748110587,0.07354,68027.0,68015.0,0.073553]
[1730748110787,0.12717281,68029.0,68023.0,0.073544]
[1730748110995,0.12717281,68029.0,68024.0,0.077543]
[1730748111194,0.20071081,68029.0,68024.0,0.077543]
[1730748111692,0.001,68027.0,68024.0,0.073543]
[1730748111994,0.12717281,68025.0,68013.0,0.4304]
[1730748112197,0.073547,68021.0,68017.0,0.07355]
[1730748112387,0.073544,68024.0,68019.0,0.3608]
[1730748112695,0.3608,68026.0,68025.0,0.073542]
[1730748114289,0.3608,68026.0,68025.0,0.074542]
[1730748114991,0.3608,68026.0,68025.0,0.076542]
[1730748115387,0.3608,68026.0,68025.0,0.003]
[1730748115588,0.434341,68026.0,68025.0,0.003]
[1730748116887,0.435341,68026.0,68025.0,0.002]
[1730748117088,0.435341,68026.0,68016.0,0.073552]
[1730748117089,0.073548,68020.0,68016.0,0.073552]
[1730748117795,0.073548,68020.0,68016.0,0.04936711]
[1730748117796,0.10959674,68019.0,68016.0,0.04936711]
[1730748117991,0.14636942,68018.0,68016.0,0.04936711]
[1730748118390,0.25596616,68017.0,68016.0,0.04936711]
[1730748118587,0.25596616,68017.0,68016.0,0.05036711]
[1730748119082,0.61697114,68017.0,68016.0,0.05036711]
[1730748119283,0.54394774,68017.0,68016.0,0.001]
[1730748119487,0.54394774,68017.0,68016.0,0.003]
[1730748119691,0.69052214,68017.0,68016.0,0.003]
[1730748119991,0.59671405,68017.0,68016.0,0.005]
[1730748120700,0.59771405,68017.0,68016.0,0.002]
[1730748121003,0.073556,68013.0,68009.0,0.073559]
[1730748121189,0.02841916,68012.0,68009.0,0.073559]
[1730748121385,0.18982459,68011.0,68009.0,0.073559]
[1730748121590,0.02841916,68010.0,68009.0,0.073559]
[1730748121786,0.06444721,68010.0,68009.0,0.073559]
[1730748121997,0.02841916,68010.0,68009.0,0.073559]
[1730748122393,0.10960592,68010.0,68009.0,0.073559]
[1730748122888,0.02841916,68010.0,68009.0,0.077559]
[1730748123290,0.10960592,68010.0,68009.0,0.079559]
[1730748123805,0.10960592,68010.0,68009.0,0.081559]
[1730748124900,0.02252067,68015.0,68012.0,0.073556]
[1730748125203,0.073553,68016.0,68013.0,0.13185328]
[1730748126011,0.073554,68014.0,68013.0,0.05829828]
[1730748127790,0.3608,68017.0,68008.0,0.07356]
[1730748128099,0.073554,68014.0,68013.0,0.0592946]
[1730748128301,0.073554,68014.0,68013.0,0.001]
[1730748128801,0.38322501,68017.0,68012.0,0.0582946]
[1730748129093,0.073555,68013.0,68012.0,0.0582946]
[1730748130199,0.073555,68013.0,68007.0,0.07286825]
[1730748130403,0.38622501,68017.0,68005.0,0.3608]
[1730748130404,0.002,68017.0,68016.0,0.073552]
[1730748130598,0.002,68017.0,68016.0,0.30554813]
[1730748131205,0.002,68017.0,68016.0,1.80554813]
[1730748131502,0.073538,68030.0,68026.0,0.073541]
[1730748131895,0.073538,68029.0,68026.0,0.073541]
[1730748132309,0.0757449,68028.0,68026.0,0.073541]
[1730748132697,0.0797449,68028.0,68026.0,0.073541]
[1730748132897,0.0807449,68028.0,68026.0,0.073541]
[1730748133604,0.07354,68027.0,68026.0,0.073541]
[1730748133809,0.07354,68027.0,68023.0,0.073544]
[1730748133993,0.02984495,68028.0,68019.0,0.0652]
[1730748134196,0.073542,68026.0,68019.0,0.0652]
[1730748134907,0.001,68027.0,68026.0,0.073541]
[1730748135605,0.0032059,68028.0,68026.0,0.073541]
[1730748135798,0.073523,68043.0,68040.0,0.073526]
[1730748135998,0.198716,68050.0,68034.0,0.073532]
[1730748135999,0.073524,68042.0,68041.0,0.073525]
[1730748136407,0.1478524,68050.0,68039.0,0.127181]
[1730748136408,0.3608,68047.0,68039.0,0.127181]
[1730748136705,0.073526,68041.0,68039.0,0.073527]
[1730748136906,0.073526,68040.0,68039.0,0.073527]
[1730748138001,0.073526,68040.0,68035.0,0.065]
[1730748138299,0.07352,68046.0,68036.0,0.07353]
[1730748138493,0.487981,68047.0,68035.0,0.065]
[1730748138494,0.488741,68047.0,68035.0,0.065]
[1730748138698,0.488741,68047.0,68040.0,0.073525]
[1730748138699,0.487981,68047.0,68040.0,0.073525]
[1730748138895,0.073522,68044.0,68041.0,0.139725]
[1730748139100,0.073523,68043.0,68041.0,0.139725]
[1730748139403,0.073523,68043.0,68041.0,0.138725]
[1730748139602,0.073522,68045.0,68041.0,0.138725]
[1730748139910,0.1830792,68044.0,68039.0,0.001]
[1730748140101,0.16230134,68043.0,68041.0,0.001]
[1730748140300,0.16230134,68042.0,68041.0,0.001]
[1730748140596,0.1095572,68042.0,68036.0,0.07353]
[1730748140801,0.16116764,68037.0,68036.0,0.07353]
[1730748140997,0.1095572,68037.0,68036.0,0.07353]
[1730748141302,0.16230141,68037.0,68036.0,0.07353]
[1730748141707,0.1095572,68037.0,68036.0,0.07353]
[1730748142510,0.002,68037.0,68036.0,0.51545]
[1730748142707,0.14642531,68044.0,68040.0,0.073526]
[1730748143014,0.0226524,68050.0,68040.0,0.073526]
[1730748143015,0.14642531,68046.0,68045.0,0.073521]
[1730748143306,0.07571625,68056.0,68051.0,0.073514]
[1730748143502,0.07571625,68056.0,68055.0,0.07351]
[1730748143706,0.07571625,68056.0,68055.0,0.05006661]
[1730748144010,0.12844841,68056.0,68055.0,0.05006661]
[1730748145307,0.05493664,68056.0,68055.0,0.17724761]
[1730748145508,0.00420525,68056.0,68055.0,0.17824761]
[1730748145706,0.00420525,68056.0,68055.0,0.17924761]
[1730748146206,0.07771425,68056.0,68055.0,0.17924761]
[1730748146411,0.00420525,68056.0,68055.0,0.17924761]
[1730748147712,0.04933251,68056.0,68055.0,0.17924761]
[1730748147916,0.00420525,68056.0,68055.0,0.17924761]
[1730748148911,0.00420525,68056.0,68055.0,0.05206661]
[1730748149116,0.07771425,68056.0,68055.0,0.05206661]
[1730748149411,0.00420525,68056.0,68055.0,0.05206661]
[1730748150211,0.00420525,68056.0,68055.0,0.17924761]
[1730748150607,0.002,68056.0,68055.0,0.17924761]
[1730748151815,0.075509,68056.0,68055.0,0.17924761]
[1730748151999,0.075509,68056.0,68055.0,0.05206661]
[1730748152314,0.002,68056.0,68055.0,0.05206661]
[1730748153403,0.0685,68056.0,68055.0,0.05206661]
[1730748156121,0.142009,68056.0,68055.0,0.002]
[1730748158716,0.142009,68056.0,68055.0,0.001]
[1730748159020,0.07351,68055.0,68052.0,0.073513]
[1730748159311,0.07351,68055.0,68049.0,0.3608]
[1730748159312,0.0685,68056.0,68050.0,0.127181]
[1730748159512,0.0665,68056.0,68055.0,0.07451]
[1730748159720,0.0675,68056.0,68055.0,0.07551]
[1730748160313,0.0665,68056.0,68055.0,0.07351]
[1730748160622,0.0675,68056.0,68055.0,0.200691]
[1730748161218,0.0675,68056.0,68055.0,0.24434829]
[1730748161516,0.0675,68056.0,68055.0,0.200691]
[1730748162207,0.0685,68056.0,68055.0,0.201691]
[1730748162811,0.0685,68056.0,68055.0,0.25992699]
[1730748163009,0.0685,68056.0,68055.0,0.201691]
[1730748164216,0.142009,68056.0,68055.0,0.201691]
[1730748164609,0.142009,68056.0,68055.0,0.001]
[1730748165116,0.17040983,68056.0,68055.0,0.001]
[1730748165927,0.17041029,68056.0,68055.0,0.001]